fUSD/lending_fUSD_20250423
["ID","MTS","AMOUNT","RATE_DAILY","PERIOD"]
[358771405,1745419882036,988.05,0.0004669,40]
[358771406,1745419882118,658.08,0.0004669,40]
[358771407,1745419882187,1095.02,0.0004669,40]
[358771408,1745419882256,917.62,0.0004669,40]
[358771409,1745419882583,1002.23,0.0004669,40]
[358771410,1745419882691,658.08,0.0004669,40]
[358771411,1745419882769,988.05,0.0004669,40]
[358771412,1745419882843,917.62,0.0004669,40]
[358771413,1745419882918,1095.02,0.0004669,40]
[358771414,1745419882988,1002.23,0.0004669,40]
[358771415,1745419883086,988.05,0.0004669,40]
[358771416,1745419883171,917.62,0.0004669,40]
[358771417,1745419883251,658.08,0.0004669,40]
[358771418,1745419883330,1095.02,0.0004669,40]
[358771419,1745419883426,1002.23,0.0004669,40]
[358771420,1745419883503,917.62,0.0004669,40]
[358771421,1745419883607,988.05,0.0004669,40]
[358771422,1745419883679,658.08,0.0004669,40]
[358771423,1745419883753,1095.02,0.0004669,40]
[358771424,1745419883854,1002.23,0.0004669,40]
[358771425,1745419883923,917.62,0.0004669,40]
[358771426,1745419883995,1095.02,0.0004669,40]
[358771427,1745419884067,658.08,0.0004669,40]
[358771428,1745419884138,988.05,0.0004669,40]
[358771429,1745419884234,1002.23,0.0004669,40]
[358771430,1745419884308,917.62,0.0004669,40]
[358771431,1745419884378,988.05,0.0004669,40]
[358771432,1745419884452,658.08,0.0004669,40]
[358771433,1745419884519,1095.02,0.0004669,40]
[358771434,1745419884615,1002.23,0.0004669,40]
[358771435,1745419884683,917.62,0.0004669,40]
[358771436,1745419884752,658.08,0.0004669,40]
[358771437,1745419884817,988.05,0.0004669,120]
[358771438,1745419884885,1095.02,0.0004669,40]
[358771439,1745419884978,1002.23,0.0004669,40]
[358771440,1745419885047,917.62,0.0004669,40]
[358771441,1745419885111,658.08,0.0004669,120]
[358771442,1745419885183,988.05,0.0004669,120]
[358771443,1745419885252,1095.02,0.0004669,40]
[358771444,1745419885326,1002.23,0.0004669,40]
[358771445,1745419885400,917.62,0.0004669,40]
[358771446,1745419885470,658.08,0.0004669,120]
[358771447,1745419885568,1095.02,0.0004669,40]
[358771448,1745419885659,1002.23,0.0004669,120]
[358771449,1745419885737,917.62,0.0004669,40]
[358771450,1745419885811,500.0,0.0004669,40]
[358771451,1745419885878,658.08,0.0004669,120]
[358771452,1745419885950,1002.23,0.0004669,120]
[358771453,1745419886019,917.62,0.0004669,40]
[358771454,1745419886088,500.0,0.0004669,40]
[358771455,1745419886162,658.26,0.0004669,120]
[358771456,1745419886234,1095.02,0.0004669,40]
[358771457,1745419886307,988.05,0.0004669,120]
[358771458,1745419886376,1002.23,0.0004669,120]
[358771459,1745419886443,500.0,0.0004669,40]
[358771460,1745419886517,917.62,0.0004669,40]
[358771461,1745419886591,1095.02,0.0004669,40]
[358771462,1745419886663,661.60351821,0.0004669,120]
[358771463,1745419924217,855.68,0.00037808,60]
[358771466,1745420107378,1532.6,0.000378,60]
[358771467,1745420301852,764.65806966,0.00019494,2]
[358771468,1745420370917,1000.0,0.00037808,60]
[358771469,1745420400522,1000.0,0.00037808,60]
[358771470,1745420425033,1000.0,0.00037808,60]
[358771471,1745420485206,1000.0,0.00037808,60]
[358771472,1745420547678,789.0,0.00037808,60]
[358771473,1745420552594,155.14,0.0003537,120]
[358771474,1745420567238,1495.797772,0.00037808,60]
[358771479,1745420743327,1007.95494632,0.00019524,2]
[358771480,1745420774920,1390.53,0.00019445,2]
[358771481,1745420789733,200.0,0.00019377,2]
[358771482,1745420800601,673.33,0.00019377,2]
[358771483,1745420829420,250.0,0.00019493,2]
[358771484,1745420848211,500.0,0.00019326,7]
[358771485,1745420933218,790.6878452,0.00018962,2]
[358771486,1745420933565,790.6878452,0.00019314,2]
[358771487,1745420934109,640.57294861,0.00019502,2]
[358771488,1745420934135,150.11489659,0.00019502,2]
[358771489,1745420954187,488.03111794,0.00019441,2]
[358771490,1745420980703,163.11574728,0.00019424,2]
[358771491,1745420986540,150.0,0.00037808,60]
[358771492,1745420986620,163.11574727,0.00019441,2]
[358771496,1745421009699,3771.43112993,0.00019309,2]
[358771497,1745421009726,4735.80863901,0.00019309,2]
[358771498,1745421009752,4735.80863901,0.00019309,2]
[358771499,1745421009777,4735.80863901,0.00019309,2]
[358771500,1745421009802,4735.80863901,0.00019309,2]
[358771501,1745421012083,-190.89129641,0.00019309,2]
[358771502,1745421020944,-300.0,0.00019309,2]
[358771503,1745421023205,1433.72,0.0001739,2]
[358771504,1745421027589,-163.74186417,0.00019309,2]
[358771505,1745421030845,-218.29330747,0.00019309,2]
[358771519,1745421031787,-1063.44509394,0.00019309,2]
[358771521,1745421031884,-248.95275204,0.00019309,2]
[358771522,1745421031894,-900.0,0.00019523,2]
[358771523,1745421031904,-300.0,0.00019523,2]
[358771524,1745421031913,-300.0,0.00019523,2]
[358771525,1745421031923,-150.0,0.00019523,2]
[358771526,1745421031933,-52171.06544213,0.00019524,2]
[358771527,1745421031943,-22892.04505368,0.00019524,2]
[358771528,1745421031954,-3091.64,0.00019541,2]
[358771529,1745421031963,-1433.72,0.00019654,2]
[358771530,1745421031973,-500.0,0.00019673,2]
[358771566,1745421032510,-500.0,0.00019673,2]
[358771568,1745421032521,-580.7180638,0.00019686,2]
[358771570,1745421032530,-26533.53144856,0.00019687,2]
[358771576,1745421032587,-3923.20665392,0.00019687,2]
[358771578,1745421032597,-234.67,0.00019687,2]
[358771580,1745421032607,-296.28,0.00019687,2]
[358771581,1745421032616,-175.86916608,0.00019697,2]
[358771626,1745421037834,-2688.73278738,0.00019697,2]
[358771627,1745421037894,-14830.65804654,0.00019697,2]
[358771628,1745421037904,-9999.99,0.00019697,2]
[358771629,1745421037914,-9999.99,0.00019697,2]
[358771630,1745421037923,-760.38,0.00019697,2]
[358771631,1745421037934,-999.99,0.00019697,2]
[358771632,1745421037944,-570.97,0.00019873,2]
[358771633,1745421037953,-790.68784521,0.00019873,2]
[358771634,1745421037962,-1239.15,0.00019873,2]
[358771635,1745421037972,-485.86,0.00019873,2]
[358771636,1745421037981,-150.99,0.00019873,2]
[358771637,1745421037993,-157.1897486,0.00019876,2]
[358771638,1745421038003,-543.309828,0.00019876,2]
[358771639,1745421038013,-15416.4032,0.00019886,2]
[358771640,1745421038023,-2012.5339,0.000199,2]
[358771641,1745421038032,-250.3876,0.000199,2]
[358771642,1745421038042,-150.76849554,0.000199,2]
[358771643,1745421038052,-4555.2888,0.000199,2]
[358771644,1745421038062,-152.57047982,0.000199,2]
[358771645,1745421038072,-1326.11386685,0.000199,2]
[358771646,1745421038082,-14651.0,0.00019973,2]
[358771647,1745421038092,-162.719,0.00019973,2]
[358771648,1745421038101,-500.0,0.00019973,2]
[358771650,1745421038111,-500.0,0.00019973,2]
[358771652,1745421038120,-501.49227619,0.00019973,2]
[358771654,1745421038130,-500.0,0.00019973,2]
[358771656,1745421038140,-501.80840205,0.00019973,2]
[358771658,1745421038150,-500.0,0.00019973,2]
[358771660,1745421038160,-528.94035995,0.00019973,2]
[358771662,1745421038170,-500.0,0.00019973,2]
[358771663,1745421038180,-150.99,0.00019973,2]
[358771665,1745421038189,-9999.99,0.00019973,2]
[358771667,1745421038199,-388.19,0.00019973,2]
[358771669,1745421038209,-3270.222,0.00019973,2]
[358771672,1745421038218,-176.14,0.00019982,2]
[358771674,1745421038228,-1427.1510735,0.00019986,2]
[358771675,1745421038237,-60015.5433885,0.00019986,2]
[358771677,1745421038248,-47318.1024252,0.00019986,2]
[358771680,1745421038258,-1000.0,0.00019999,2]
[358771682,1745421038268,-359.59309736,0.00019999,2]
[358771684,1745421038278,-170.49716255,0.00019999,2]
[358771686,1745421038287,-313.41939827,0.00019999,2]
[358771687,1745421038297,-292.3474217,0.00019999,2]
[358771689,1745421038306,-197.71857276,0.00019999,2]
[358771692,1745421038316,-528574.85814927,0.0002,2]
[358771695,1745421038326,-7209.26424531,0.0002,2]
[358771697,1745421038336,-300.99738329,0.0002,2]
[358771699,1745421038345,-1481.43211323,0.0002,2]
[358771701,1745421038354,-188.185383,0.0002,2]
[358771703,1745421038363,-84496.01323872,0.0002,2]
[358771704,1745421038373,-41232.86796624,0.0002,2]
[358771706,1745421038382,-5400.0,0.0002,2]
[358771708,1745421038392,-5647.72483966,0.0002,2]
[358771710,1745421038402,-3555779.74791349,0.0002,2]
[358771712,1745421038415,-80685.99614737,0.0002,2]
[358771714,1745421038425,-255.25,0.000201,2]
[358771716,1745421038435,-1000.0,0.00020211,2]
[358771718,1745421038445,-42721.69569617,0.00020411,2]
[358771721,1745421038456,-1326.11386676,0.00020453,2]
[358771723,1745421038468,-1173.7987,0.00020466,2]
[358771725,1745421038477,-157.18974859,0.00020576,2]
[358771727,1745421038487,-160.68,0.00020649,2]
[358771729,1745421038499,-503.0,0.00021151,2]
[358771731,1745421038509,-420.0,0.00021268,2]
[358771733,1745421038518,-420.0,0.00021268,2]
[358771735,1745421038528,-157.18974859,0.00021275,2]
[358771736,1745421038539,-1853.06,0.0002137,2]
[358771738,1745421038549,-1260.0,0.00021371,2]
[358771741,1745421038559,-5357.15,0.00021461,2]
[358771743,1745421038569,-250.0,0.00021475,2]
[358771745,1745421038579,-150.0,0.00021475,2]
[358771746,1745421038589,-250.0,0.00021476,2]
[358771748,1745421038598,-150.0,0.00021476,2]
[358771750,1745421038607,-150.0,0.00021476,2]
[358771752,1745421038616,-150.0,0.00021548,2]
[358771754,1745421038626,-15369.86,0.00021597,2]
[358771756,1745421038636,-1155.38,0.00021673,2]
[358771758,1745421038645,-3391.87,0.00021692,2]
[358771760,1745421038655,-2729.81745138,0.000219,3]
[358771762,1745421038665,-2729.81745117,0.000219,3]
[358771764,1745421038674,-1433.72,0.00021918,2]
[358771766,1745421038684,-157.18974859,0.00021975,2]
[358771768,1745421038694,-7318.52,0.00021992,2]
[358771770,1745421038704,-1077.22664742,0.00022,14]
[358771772,1745421038715,-7570.04926854,0.00022,15]
[358771774,1745421038725,-2685.51,0.00022098,2]
[358771776,1745421038734,-176.94,0.00022155,2]
[358771778,1745421038745,-2900.0,0.000225,15]
[358771780,1745421038755,-157.18974859,0.00022674,2]
[358771782,1745421038764,-160.68,0.00022713,2]
[358771784,1745421038775,-1000.0,0.00022738,2]
[358771786,1745421038785,-2729.81745117,0.00022831,4]
[358771788,1745421038795,-20005.93408226,0.00023,15]
[358771790,1745421038804,-1000.0,0.00023,14]
[358771792,1745421038814,-250.0,0.00023,2]
[358771794,1745421038824,-193.67,0.00023002,2]
[358771796,1745421038835,-587.0,0.0002317,2]
[358771798,1745421038844,-157.18974859,0.00023374,2]
[358771800,1745421038854,-1763.0,0.00023394,2]
[358771802,1745421038863,-2729.81745117,0.00023797,4]
[358771804,1745421038873,-833.69145673,0.00024,2]
[358771806,1745421038883,-470.41034981,0.0002402,2]
[358771808,1745421038892,-157.18974859,0.00024073,2]
[358771810,1745421038902,-1433.72,0.00024182,2]
[358771812,1745421038911,-3565.65659974,0.0002421,2]
[358771814,1745421038920,-150.76849548,0.00024348,2]
[358771816,1745421038930,-1000.0,0.00024658,2]
[358771818,1745421038939,-2729.81745117,0.00024762,5]
[358771820,1745421038949,-500.0,0.00024773,2]
[358771821,1745421038959,-502.14341741,0.00024773,2]
[358771822,1745421038970,-214.89670127,0.00024773,2]
[358771823,1745421038981,-500.0,0.00024773,2]
[358771824,1745421038992,-500.0,0.00024773,2]
[358771825,1745421039002,-157.18974859,0.00024773,2]
[358771826,1745421039012,-160.68,0.00024778,2]
[358771827,1745421039022,-210605.588155,0.000248,3]
[358771828,1745421039032,-228.78479006,0.00024873,2]
[358771829,1745421039041,-500.83530021,0.00024873,2]
[358771830,1745421039051,-500.0,0.00024873,2]
[358771831,1745421039060,-500.0,0.00024873,2]
[358771832,1745421039070,-160.13550805,0.00024873,2]
[358771833,1745421039079,-500.0,0.00024873,2]
[358771835,1745421039088,-195.87325158,0.000249,2]
[358771836,1745421039098,-535303.788498,0.000249,3]
[358771838,1745421039107,-176.14,0.00024978,2]
[358771840,1745421039115,-19999.99,0.0002498,2]
[358771842,1745421039125,-3897.32,0.0002498,2]
[358771844,1745421039136,-300.0,0.00025,2]
[358771846,1745421039145,-500.0,0.00025152,2]
[358771848,1745421039154,-1000.0,0.00025152,2]
[358771850,1745421039164,-500.0,0.00025205,2]
[358771852,1745421039173,-517.0,0.00025242,2]
[358771854,1745421039183,-1000.0,0.00025264,2]
[358771856,1745421039192,-503.25922459,0.00025452,2]
[358771858,1745421039201,-504.5226041,0.00025452,2]
[358771860,1745421039210,-516.48649534,0.00025452,2]
[358771862,1745421039220,-501.61566963,0.00025452,2]
[358771864,1745421039230,-2469.0,0.00025609,2]
[358771866,1745421039240,-2729.81745117,0.00025728,6]
[358771868,1745421039251,-250.62962809,0.00026097,2]
[358771870,1745421039262,-1823.03638286,0.000264,2]
[358771872,1745421039272,-1433.72,0.00026446,2]
[358771873,1745421039281,-2729.81745117,0.00026693,6]
[358771875,1745421039291,-500.0,0.000267,2]
[358771877,1745421039301,-506.77033158,0.000267,2]
[358771879,1745421039311,-160.68,0.00026843,2]
[358771881,1745421039323,-350.0,0.00027,2]
[358771884,1745421039333,-500.0,0.00027397,2]
[358771885,1745421039343,-500.0,0.00027397,2]
[358771888,1745421039354,-628.39498706,0.00027397,2]
[358771889,1745421039363,-500.0,0.00027397,5]
[358771892,1745421039374,-193.8235621,0.000275,2]
[358771894,1745421039385,-2729.81745117,0.00027659,7]
[358771896,1745421039396,-587.06293171,0.00027731,2]
[358771898,1745421039407,-500.0,0.00027773,5]
[358771900,1745421039417,-500.0,0.00027773,5]
[358771902,1745421039426,-503.06510687,0.00027773,5]
[358771904,1745421039438,-1000.0,0.0002779,2]
[358771906,1745421039447,-570.97,0.00027822,2]
[358771908,1745421039459,-936.10856965,0.00027945,5]
[358771910,1745421039470,-3457.0,0.00028034,2]
[358771912,1745421039480,-500.0,0.00028301,2]
[358771914,1745421039489,-2729.81745117,0.00028624,8]
[358771915,1745421039502,-1433.72,0.0002871,2]
[358771917,1745421039512,-150.76849548,0.00028797,2]
[358771919,1745421039521,-160.68,0.00028908,2]
[358771922,1745421039535,-300.0,0.00028999,10]
[358771924,1745421039545,-500.0,0.00028999,2]
[358771925,1745421039554,-666.0,0.00028999,10]
[358771927,1745421039563,-500.0,0.00028999,2]
[358771929,1745421039573,-75039.92112642,0.00029,2]
[358771931,1745421039582,-400.0,0.00029,2]
[358771933,1745421039593,-2729.81745117,0.0002959,8]
[358771935,1745421039603,-150.0,0.00029925,5]
[358771937,1745421039612,-176.14,0.00029973,2]
[358771939,1745421039624,-1320.95623379,0.0003,20]
[358771941,1745421039633,-5379.93769628,0.0003,10]
[358771944,1745421039643,-451.15295149,0.0003,2]
[358771946,1745421039653,-194.2,0.0003,2]
[358771948,1745421039662,-160.70290143,0.0003,2]
[358771950,1745421039672,-1000.0,0.00030317,2]
[358771952,1745421039682,-1000.0,0.00030352,5]
[358771954,1745421039692,-1000.0,0.00030352,5]
[358771956,1745421039702,-1001.30022376,0.00030352,5]
[358771958,1745421039712,-349.20641886,0.00030473,5]
[358771960,1745421039722,-2729.81745117,0.00030555,9]
[358771962,1745421039732,-4252.0,0.00030688,2]
[358771964,1745421039743,-160.68,0.00030973,2]
[358771966,1745421039753,-1433.72,0.00030973,2]
[358771968,1745421039763,-450.0,0.00031,2]
[358771970,1745421039773,-2729.81745117,0.00031521,10]
[358771972,1745421039784,-3196.96066302,0.00032,5]
[358771974,1745421039793,-1507.11634356,0.00032,2]
[358771976,1745421039803,-861.03330573,0.00032179,5]
[358771978,1745421039812,-2729.81745117,0.00032486,10]
[358771980,1745421039822,-4653.5514514,0.000328,2]
[358771982,1745421039831,-267.11,0.00032877,30]
[358771984,1745421039841,-159.52,0.00032877,2]
[358771986,1745421039851,-1541.28,0.00032904,30]
[358771988,1745421039860,-329.08517922,0.00032999,10]
[358771989,1745421039869,-500.0,0.00032999,10]
[358771991,1745421039879,-4557.32775913,0.00033,2]
[358771993,1745421039888,-25127.17473418,0.00033,2]
[358771996,1745421039899,-500.0,0.00033,2]
[358771998,1745421039909,-1076.7,0.00033,2]
[358772000,1745421039919,-1433.72,0.00033237,2]
[358772002,1745421039929,-150.76849548,0.00033245,2]
[358772004,1745421039939,-152.5704798,0.00033249,2]
[358772005,1745421039948,-734.86257971,0.00033252,5]
[358772008,1745421039958,-1000.0,0.00033252,5]
[358772010,1745421039968,-500.0,0.00033414,10]
[358772012,1745421039978,-500.0,0.00033414,10]
[358772014,1745421039988,-49902.6,0.00033415,2]
[358772015,1745421039999,-2729.81745117,0.00033452,11]
[358772017,1745421040009,-4003.47403547,0.00034,2]
[358772020,1745421040019,-150.0,0.00034403,30]
[358772021,1745421040028,-150.0,0.00034403,30]
[358772024,1745421040038,-150.0,0.00034403,30]
[358772025,1745421040048,-150.0,0.00034403,30]
[358772027,1745421040057,-625.52802406,0.00034403,30]
[358772030,1745421040067,-166.2488624,0.00034403,30]
[358772032,1745421040076,-406.52668892,0.00034403,30]
[358772034,1745421040086,-1385.89444265,0.00034403,30]
[358772036,1745421040096,-2729.81745117,0.00034417,11]
[358772038,1745421040107,-166.7,0.00034418,2]
[358772039,1745421040116,-159.52,0.00034521,2]
[358772041,1745421040125,-500.0,0.00034575,2]
[358772043,1745421040135,-873.99679988,0.0003489,14]
[358772045,1745421040145,-6029.78467888,0.00035,2]
[358772048,1745421040156,-3900.0,0.00035,7]
[358772050,1745421040165,-550.0,0.00035,2]
[358772051,1745421040175,-1076.7,0.00035,2]
[358772054,1745421040185,-213.0,0.000351,2]
[358772056,1745421040195,-1219.25,0.0003537,2]
[358772058,1745421040205,-300.44,0.0003537,2]
[358772060,1745421040215,-2344.32,0.0003537,2]
[358772061,1745421040225,-500.0,0.0003537,2]
[358772063,1745421040234,-150.0,0.0003537,2]
[358772066,1745421040244,-503.02,0.0003537,2]
[358772068,1745421040254,-1000.0,0.0003537,2]
[358772070,1745421040264,-1980.29,0.0003537,2]
[358772071,1745421040274,-174.8,0.0003537,2]
[358772073,1745421040283,-736.13,0.0003537,2]
[358772075,1745421040294,-200.0,0.0003537,2]
[358772077,1745421040303,-191.63,0.0003537,2]
[358772079,1745421040313,-2729.81745117,0.00035383,12]
[358772081,1745421040322,-1433.72,0.00035501,2]
[358772083,1745421040331,-150.0,0.00035616,5]
[358772086,1745421040341,-500.0,0.00035929,10]
[358772088,1745421040350,-500.0,0.00035929,10]
[358772090,1745421040360,-214093.45259114,0.0003593,7]
[358772091,1745421040369,-500.0,0.00036,5]
[358772093,1745421040378,-213.0,0.0003607,2]
[358772095,1745421040388,-159.52,0.00036164,2]
[358772097,1745421040397,-2729.81745117,0.00036348,13]
[358772100,1745421040408,-267.11,0.00036986,30]
[358772102,1745421040418,-600.0,0.00037,2]
[358772103,1745421040428,-1000.0,0.00037,7]
[358772106,1745421040437,-213.0,0.0003704,2]
[358772107,1745421040447,-1980.29,0.00037139,2]
[358772109,1745421040459,-1958.0,0.000372,2]
[358772111,1745421040469,-2729.81745117,0.00037314,13]
[358772113,1745421040479,-1541.82160026,0.0003759,2]
[358772115,1745421040488,-863.0,0.00037634,5]
[358772117,1745421040499,-150.76849548,0.00037693,2]
[358772119,1745421040509,-5565.0,0.000377,3]
[358772121,1745421040518,-1433.72,0.00037765,2]
[358772123,1745421040528,-159.52,0.00037808,2]
[358772125,1745421040539,-5787.0,0.00037936,2]
[358772127,1745421040549,-152.0,0.00037936,2]
[358772129,1745421040559,-3984.0,0.00037936,2]
[358772131,1745421040568,-876.0,0.00037936,2]
[358772133,1745421040577,-1076.7,0.00038,2]
[358772135,1745421040587,-213.0,0.0003801,2]
[358772137,1745421040596,-1000.0,0.000382,7]
[358772139,1745421040605,-2729.81745117,0.00038279,14]
[358772141,1745421040615,-5565.0,0.000383,5]
[358772143,1745421040625,-160.0,0.00038356,5]
[358772145,1745421040635,-1000.0,0.000389,30]
[358772147,1745421040644,-1000.0,0.000389,30]
[358772149,1745421040653,-152.26,0.000389,2]
[358772151,1745421040663,-152.26,0.000389,2]
[358772153,1745421040672,-152.26,0.000389,2]
[358772155,1745421040682,-152.26,0.000389,2]
[358772157,1745421040692,-152.26,0.000389,2]
[358772159,1745421040701,-152.26,0.000389,2]
[358772161,1745421040711,-152.26,0.000389,2]
[358772163,1745421040721,-152.26,0.000389,2]
[358772165,1745421040731,-152.26,0.000389,2]
[358772167,1745421040743,-152.26,0.000389,2]
[358772169,1745421040753,-152.26,0.000389,2]
[358772171,1745421040763,-152.26,0.000389,2]
[358772173,1745421040773,-152.26,0.000389,2]
[358772175,1745421040782,-152.26,0.000389,2]
[358772177,1745421040792,-152.26,0.000389,2]
[358772179,1745421040802,-152.26,0.000389,2]
[358772181,1745421040811,-152.26,0.000389,2]
[358772183,1745421040821,-152.26,0.000389,2]
[358772185,1745421040831,-152.26,0.000389,2]
[358772187,1745421040841,-152.26,0.000389,2]
[358772188,1745421040850,-152.26,0.000389,2]
[358772189,1745421040860,-152.26,0.000389,2]
[358772190,1745421040869,-152.26,0.000389,2]
[358772191,1745421040879,-152.26,0.000389,2]
[358772192,1745421040888,-152.26,0.000389,2]
[358772193,1745421040898,-152.26,0.000389,2]
[358772194,1745421040907,-152.26,0.000389,2]
[358772195,1745421040918,-152.26,0.000389,2]
[358772196,1745421040928,-152.26,0.000389,2]
[358772197,1745421040938,-152.26,0.000389,2]
[358772198,1745421040947,-152.26,0.000389,2]
[358772199,1745421040957,-152.26,0.000389,2]
[358772200,1745421040967,-1980.29,0.00038907,2]
[358772201,1745421040978,-200.0,0.00038907,120]
[358772202,1745421040988,-213.0,0.0003898,2]
[358772203,1745421041002,-2622.67,0.00039,14]
[358772205,1745421041012,-514.13228268,0.00039,120]
[358772207,1745421041023,-650.0,0.00039,2]
[358772209,1745421041033,-152.0,0.00039132,3]
[358772210,1745421041043,-2729.81745117,0.00039245,15]
[358772211,1745421041053,-1000.0,0.000394,7]
[358772212,1745421041063,-159.52,0.00039452,2]
[358772213,1745421041072,-500.0,0.00039616,2]
[358772214,1745421041082,-500.0,0.00039625,60]
[358772215,1745421041092,-500.0,0.00039725,10]
[358772216,1745421041102,-500.0,0.00039725,10]
[358772217,1745421041112,-500.0,0.00039726,15]
[358772218,1745421041121,-500.0,0.00039726,15]
[358772219,1745421041131,-175.92015429,0.00039726,15]
[358772220,1745421041141,-500.0,0.00039726,15]
[358772221,1745421041151,-500.0,0.00039726,15]
[358772222,1745421041161,-500.0,0.00039726,15]
[358772223,1745421041170,-500.0,0.00039726,15]
[358772224,1745421041180,-500.0,0.00039726,15]
[358772225,1745421041190,-500.0,0.00039726,15]
[358772226,1745421041200,-150.00000003,0.00039726,15]
[358772227,1745421041209,-977.59445258,0.00039726,15]
[358772228,1745421041219,-977.59445258,0.00039726,15]
[358772229,1745421041228,-977.59445258,0.00039726,15]
[358772230,1745421041238,-977.59445258,0.00039726,15]
[358772231,1745421041251,-977.59445258,0.00039726,15]
[358772232,1745421041261,-977.59445258,0.00039726,15]
[358772233,1745421041271,-977.59445258,0.00039726,15]
[358772234,1745421041280,-977.59445258,0.00039726,15]
[358772235,1745421041289,-977.59445258,0.00039726,15]
[358772236,1745421041299,-977.59445258,0.00039726,15]
[358772238,1745421041309,-977.59445258,0.00039726,15]
[358772240,1745421041319,-977.59445258,0.00039726,15]
[358772242,1745421041328,-977.59445258,0.00039726,15]
[358772244,1745421041339,-977.59445258,0.00039726,15]
[358772246,1745421041348,-977.59445258,0.00039726,15]
[358772248,1745421041358,-977.59445258,0.00039726,15]
[358772249,1745421041374,-977.59445258,0.00039726,15]
[358772251,1745421041386,-977.59445258,0.00039726,15]
[358772253,1745421041396,-977.59445258,0.00039726,15]
[358772255,1745421041406,-977.59445258,0.00039726,15]
[358772257,1745421041415,-977.59445258,0.00039726,15]
[358772259,1745421041426,-977.59445258,0.00039726,15]
[358772287,1745421041705,-977.59445258,0.00039726,15]
[358772290,1745421041717,-977.59445258,0.00039726,15]
[358772292,1745421041727,-977.59445258,0.00039726,15]
[358772294,1745421041736,-977.59445258,0.00039726,15]
[358772296,1745421041748,-977.59445258,0.00039726,15]
[358772298,1745421041758,-977.59445258,0.00039726,15]
[358772300,1745421041767,-977.59445258,0.00039726,15]
[358772302,1745421041777,-977.59445258,0.00039726,15]
[358772304,1745421041786,-977.59445258,0.00039726,15]
[358772306,1745421041796,-977.59445258,0.00039726,15]
[358772308,1745421041806,-977.59445258,0.00039726,15]
[358772310,1745421041815,-977.59445258,0.00039726,15]
[358772312,1745421041824,-977.59445258,0.00039726,15]
[358772314,1745421041833,-977.59445258,0.00039726,15]
[358772316,1745421041843,-977.59445258,0.00039726,15]
[358772318,1745421041853,-977.59445258,0.00039726,15]
[358772319,1745421041862,-977.59445258,0.00039726,15]
[358772321,1745421041872,-966.20243051,0.00039726,15]
[358772323,1745421041881,-966.20243051,0.00039726,15]
[358772325,1745421041890,-966.20243051,0.00039726,15]
[358772327,1745421041900,-966.20243051,0.00039726,15]
[358772329,1745421041909,-966.20243051,0.00039726,15]
[358772331,1745421041918,-966.20243051,0.00039726,15]
[358772333,1745421041927,-966.20243051,0.00039726,15]
[358772335,1745421041936,-966.20243051,0.00039726,15]
[358772337,1745421041947,-966.20243051,0.00039726,15]
[358772339,1745421041957,-966.20243051,0.00039726,15]
[358772341,1745421041966,-966.20243051,0.00039726,15]
[358772343,1745421041975,-966.20243051,0.00039726,15]
[358772345,1745421041985,-966.20243051,0.00039726,15]
[358772347,1745421041996,-966.20243051,0.00039726,15]
[358772349,1745421042006,-966.20243051,0.00039726,15]